Workbook

Sheet carbonate
A1: original pH | B1: 6.5 | H1: Na | I1: 23 | J1: 2
A2: target pH | B2: 7 | H2: C | I2: 12 | J2: 1
A3: measured hardness | B3: 20 | C3: mg/L | D3: as calcium carbonate | H3: O | I3: 16 | J3: 3
A4: hardness | B4: =B3/100000 -> 0.0002 | C4: eq/L | K4: =SUMPRODUCT(I1:I3,J1:J3) -> 106
A5: ANCinitial | B5: =ANCopen(B1) -> 1.556935071e-05 | C5: =ANCclosed(B1,B4) -> 0.0001223697103 | D5: =C5*100000 -> 12.23697103 | E5: mg/L as CaCO3
A6: Ctinitial | B6: =10^-5/alpha0Co2(B1) -> 2.585144381e-05
A8: ANCtarget | B8: =ANCclosed(B2,B6) -> 2.156397115e-05 | C8: =ANCclosed(B2,B4) -> 0.0001668299172
A10: increase in ANC | B10: =B8-B5 -> 5.994620443e-06 | C10: =C8-C5 -> 4.446020691e-05 | D10: eq/L
A11: sodium carbonate dose to raise pH | B11: =B10/B15 -> 2.997310222e-06 | D11: mol/L
A13: sodium carbonate price per kg | B13: 0.53
A14: Kg/mole | B14: =K4/1000 -> 0.106
A15: eq/mole | B15: 2
A16: price per eq | B16: =B13*B14/B15 -> 0.02809 | C16: $/eq | H16: alum
G17: cost | H17: 0.3733 | I17: $/kg
A18: sodium carbonate price per liter | B18: =B10*B16 -> 1.683888883e-07
A19: per capita | B19: 130 | C19: L/person/day
A20: people per house | B20: 6
A21: days per month | B21: 30
A22: consumption per month | B22: =B21*B20*B19 -> 23400 | C22: L
A23: price per month to raise the pH | B23: =B22*B18 -> 0.003940299985 | C23: $/month/household
A24: price per month to compensate for alum and raise pH | B24: =B34*B22 -> 0.1234504818 | C24: $/month/household
A28: alum dose | B28: 20 | C28: mg/L | D28: max dose
A29: alum molecular weight | B29: 660 | C29: g/Mole
A30: alum dose mol/L | B30: =B28/1000/B29 -> 3.03030303e-05 | C30: mole/L
A31: alum eq/mol | B31: 6 | C31: eq/mol
A32: alum dose eq/L | B32: =B30*B31 -> 0.0001818181818 | C32: eq/L
A33: total sodium carbonate dose | B33: =B32/B15+B11 -> 9.390640113e-05 | C33: Mole/L
A34: sodium carbonate price per liter | B34: =B16*B15*B33 -> 5.275661616e-06
A35: sodium carbonate price per day | B35: =B34*B44*1440 -> 2.156812864 | C35: $
A37: alum price per liter | B37: =H17*B28/1000000 -> 7.466e-06
A38: alum price per day | B38: =B37*B44*1440 -> 3.052274011
A40: chemical cost per year | B40: =(B38+B35)*365 -> 1901.316709
A42: sodium carbonate dose | B42: =B33*B14 -> 9.95407852e-06 | C42: kg/L
B43: =B42*1000000 -> 9.95407852 | C43: mg/L
A44: plant flow rate | B44: =75*3.7854 -> 283.905 | C44: Lpm
A45: sodium carbonate flux | B45: =B44*B42*1440 -> 4.069458234 | C45: kg/day
A46: alum flux | B46: =B44*B28*1440/1000000 -> 8.176464 | C46: kg/day
A47: solubility sodium carbonate | B47: 300 | C47: g/L at 20 C

Sheet lime
A1: original pH | B1: 6.5 | H1: Ca
A2: target pH | B2: 7 | H2: O
A3: measured hardness | C3: 20 | D3: mg/L | E3: as calcium carbonate
A4: hardness | B4: 0 | C4: =C3/100000 -> 0.0002 | D4: eq/L
A5: ANCinitial | B5: =ANCclosed(B1,B4) -> -2.846049894e-07 | C5: =ANCclosed(B1,C4) -> 0.0001223697103 | D5: =C5*100000 -> 12.23697103 | E5: mg/L as CaCO3 | H5: H
A6: Ctinitial | B6: 0
A8: ANCtarget | B8: =ANCclosed(B2,B6) -> 1.32348898e-23 | C8: =ANCclosed(B2,C4) -> 0.0001668299172
A10: increase in ANC | B10: =B8-B5 -> 2.846049894e-07 | C10: =C8-C5 -> 4.446020691e-05 | D10: eq/L
A11: lime dose to raise pH | B11: =B10/B15 -> 1.423024947e-07 | D11: mol/L
A13: lime price per kg | B13: 0.3
A14: Kg/mole | B14: 0.0740918
A15: eq/mole | B15: 2
A16: price per eq | B16: =B13*B14/B15 -> 0.01111377 | C16: $/eq | H16: alum
G17: cost | H17: 0.4 | I17: $/kg
A18: lime price per liter | B18: =B10*B16 -> 3.163034393e-09
A19: per capita | B19: 130 | C19: L/person/day
A20: people per house | B20: 6
A21: days per month | B21: 30
A22: consumption per month | B22: =B21*B20*B19 -> 23400 | C22: L
A23: price per month to raise the pH | B23: =B22*B18 -> 7.40150048e-05 | C23: $/month/household
A24: price per month to compensate for alum and raise pH | B24: =B34*B22 -> 0.05917906455 | C24: $/month/household
A28: alum dose | B28: 25 | C28: mg/L | D28: max dose
A29: alum molecular weight | B29: 660 | C29: g/Mole
A30: alum dose mol/L | B30: =B28/1000/B29 -> 3.787878788e-05 | C30: mole/L
A31: alum eq/mol | B31: 6 | C31: eq/mol
A32: alum dose eq/L | B32: =B30*B31 -> 0.0002272727273 | C32: eq/L
A33: total lime dose | B33: =B32/B15+B11 -> 0.0001137786661 | C33: Mole/L
A34: lime price per liter | B34: =B16*B15*B33 -> 2.529019853e-06
A35: lime price per day | B35: =B34*B43*1440 -> 1.033921989 | C35: $
A37: alum price per liter | B37: =H17*B28/1000000 -> 1e-05
A38: alum price per day | B38: =B37*B43*1440 -> 4.088232
A40: chemical cost per year | B40: =(B38+B35)*365 -> 1869.586206
A42: lime dose | B42: =B33*B14 -> 8.430066175e-06 | C42: kg/L
A43: plant flow rate | B43: =75*3.7854 -> 283.905 | C43: Lpm
A44: lime flux | B44: =B43*B42*1440 -> 3.44640663 | C44: kg/day
A45: alum flux | B45: =B43*B28*1440/1000000 -> 10.22058 | C45: kg/day
A46: solubility
C49: pOH
A50: lime pH | B50: 12.54 | C50: =14-B50 -> 1.46 | D50: =[1]!invp(C50) -> 
A51: ANClime | B51: =[1]!ANCclosed(B50,0) ->  | C51: eq/L
A52: lime feed ratio | B52: =B51/B32 ->  | C52: fraction of plant flow that must go through lime feeder
A53: lime flow rate | B53: =B43/B52 ->  | C53: L/min
A55: lime concentration | B55: =B51/B15*B14*1000000 ->  | C55: mg/L
